bitfinex-derivatives/quotes_ETHF0:USTF0_20250926
["timestamp","ask_amount","ask_price","bid_price","bid_amount"]
[1758882800589,0.4474,3876.9,3876.2,40.8]
[1758882800888,0.6229,3877.0,3876.9,0.4639]
[1758882801089,0.4474,3877.4,3876.9,0.269]
[1758882801291,0.6229,3878.0,3877.9,0.46378]
[1758882801484,0.6229,3878.0,3877.9,0.269]
[1758882802284,0.1755,3879.0,3878.0,0.1532]
[1758882802487,0.4474,3878.9,3878.8,0.46367]
[1758882802798,0.4731,3879.2,3879.1,0.46364]
[1758882803099,0.1755,3879.5,3879.3,0.46361]
[1758882803292,0.1755,3879.5,3879.4,0.27]
[1758882803492,0.1755,3879.5,3879.2,0.46362]
[1758882803694,0.1755,3879.5,3878.9,40.8]
[1758882803695,0.1755,3879.0,3878.9,40.8]
[1758882803893,0.6229,3879.0,3878.9,41.07]
[1758882804193,0.4474,3879.0,3878.9,41.07]
[1758882804390,0.4474,3878.4,3878.3,40.218]
[1758882804605,0.54080358,3878.4,3878.3,40.488]
[1758882804790,0.4474,3878.9,3878.3,40.488]
[1758882805093,0.1755,3879.0,3878.5,0.4637]
[1758882805489,0.1755,3879.0,3877.9,40.8]
[1758882805490,0.4474,3878.6,3877.9,40.8]
[1758882805688,0.1755,3879.0,3878.1,0.46375]
[1758882805689,0.4474,3878.4,3878.1,0.46375]
[1758882805889,0.4474,3878.9,3878.1,0.1532]
[1758882806091,0.0934406,3878.8,3878.1,0.1532]
[1758882806394,0.54085838,3878.7,3878.1,0.46376]
[1758882806586,0.46374,3878.3,3878.1,40.216]
[1758882806790,0.4474,3878.2,3878.1,40.216]
[1758882806991,0.4474,3878.4,3878.1,40.487]
[1758882807191,0.4474,3878.4,3878.2,0.46375]
[1758882807587,0.0257,3878.5,3878.4,0.46372]
[1758882807901,0.0257,3878.5,3878.4,0.61692]
[1758882808096,0.4474,3879.4,3878.5,0.1532]
[1758882808295,0.4474,3879.2,3879.0,0.46365]
[1758882808495,0.4474,3879.2,3879.1,0.271]
[1758882808995,0.6229,3879.5,3879.4,0.4636]
[1758882809298,0.1755,3880.0,3879.1,0.271]
[1758882809299,0.4474,3879.9,3879.6,0.46357]
[1758882809498,0.54091312,3879.8,3879.7,0.271]
[1758882809808,0.54091312,3879.8,3879.7,0.171]
[1758882810598,0.4706,3880.4,3879.7,0.171]
[1758882810798,0.09350934,3880.3,3879.7,0.171]
[1758882811098,0.1755,3880.5,3879.7,0.171]
[1758882811099,0.2012,3880.5,3880.2,0.4635]
[1758882811297,0.56411878,3880.4,3880.3,0.73449]
[1758882811495,0.0257,3880.5,3880.3,0.90309]
[1758882811696,0.0257,3880.5,3880.4,0.1686]
[1758882812703,0.0257,3880.5,3880.4,5.1686]
[1758882813199,0.46339,3881.2,3880.4,5.1686]
[1758882813497,0.4706,3880.9,3880.8,0.46344]
[1758882813703,0.4706,3881.4,3881.3,0.46338]
[1758882813899,0.6531,3882.0,3881.9,0.4633]
[1758882814095,0.6531,3882.0,3881.9,0.7343]
[1758882814699,0.1825,3882.0,3881.6,0.46334]
[1758882814903,0.6531,3882.0,3881.9,0.271]
[1758882815605,0.4706,3882.0,3881.9,0.271]
[1758882815798,0.1825,3882.5,3882.4,0.46324]
[1758882815799,0.6531,3882.5,3882.4,0.46324]
[1758882815999,0.6531,3882.5,3882.4,0.73424]
[1758882816203,0.4963,3882.7,3882.6,0.46322]
[1758882816998,0.4963,3882.7,3882.6,0.73422]
[1758882818604,0.4706,3882.7,3882.6,0.73422]
[1758882818798,0.022,3882.9,3882.8,0.4632]
[1758882818996,0.4706,3882.8,3882.4,40.199]
[1758882819196,0.022,3882.9,3882.4,0.46323]
[1758882819197,0.6531,3882.5,3882.4,0.46323]
[1758882819404,0.6531,3882.5,3882.4,0.73423]
[1758882819708,0.4706,3882.4,3882.3,40.65725]
[1758882819899,0.4706,3882.4,3882.3,40.92825]
[1758882821404,0.4706,3882.8,3882.7,0.4632]
[1758882821604,0.4706,3882.8,3882.7,0.7342]
[1758882821801,0.022,3882.9,3882.7,0.7342]
[1758882822599,0.022,3882.9,3882.8,0.1686]
[1758882823004,0.19781108,3883.9,3882.8,0.1686]
[1758882823005,0.4706,3883.7,3883.6,0.46311]
[1758882823202,0.4706,3883.7,3883.6,0.73411]
[1758882823404,0.1825,3884.0,3883.9,0.46307]
[1758882823607,0.1825,3884.0,3883.9,0.73407]
[1758882823903,0.4706,3884.4,3884.3,0.46301]
[1758882824103,0.4706,3884.4,3884.1,0.46304]
[1758882824305,0.4706,3884.1,3884.0,40.186]
[1758882824505,0.4706,3884.1,3884.0,40.457]
[1758882824704,0.1825,3884.0,3883.2,1.15789]
[1758882825011,0.4706,3883.9,3883.8,0.46308]
[1758882825203,0.4706,3883.9,3883.8,0.73308]
[1758882825912,0.4706,3883.9,3883.8,0.46308]
[1758882826109,0.4706,3883.9,3883.8,40.91308]
[1758882826513,0.4706,3884.4,3884.3,0.46302]
[1758882826713,0.4706,3884.4,3884.3,0.73302]
[1758882827404,0.1825,3884.5,3884.3,0.73302]
[1758882827601,0.0104,3884.6,3884.4,0.463]
[1758882827803,0.481,3884.6,3884.4,0.463]
[1758882827999,0.6531,3884.5,3884.4,0.463]
[1758882828308,0.0104,3884.6,3884.4,0.463]
[1758882828309,0.0104,3884.6,3884.5,0.1686]
[1758882828514,0.0104,3884.6,3884.4,40.909]
[1758882828714,0.481,3884.6,3884.5,40.445]
[1758882829507,0.6455,3884.5,3884.4,40.173]
[1758882829711,0.4706,3884.4,3884.3,40.173]
[1758882830011,0.4706,3884.4,3884.3,40.443]
[1758882830209,0.93361,3884.4,3884.3,40.443]
[1758882831514,5.4706,3884.4,3883.4,0.46313]
[1758882831716,0.4706,3883.4,3883.3,41.26314]
[1758882832018,0.4706,3883.4,3883.3,81.70214]
[1758882832217,0.4706,3883.9,3883.8,0.46308]
[1758882832513,0.1825,3884.0,3883.9,0.46307]
[1758882832714,0.4706,3884.3,3883.9,0.46306]
[1758882832914,0.4706,3883.9,3883.8,0.27]
[1758882833416,0.4706,3884.3,3884.2,0.46304]
[1758882833609,0.4706,3884.3,3884.2,0.73304]
[1758882834009,0.93362,3884.3,3884.2,0.73304]
[1758882834219,0.4706,3884.3,3884.2,0.73304]
[1758882834419,0.46304,3884.2,3884.0,0.46305]
[1758882834623,0.6531,3884.0,3883.9,0.46307]
[1758882834813,0.6531,3884.0,3883.9,40.89907]
[1758882835217,0.6531,3884.0,3883.9,0.46307]
[1758882835415,0.6531,3884.5,3884.4,0.46301]
[1758882835616,0.0094,3884.6,3884.5,0.6316]
[1758882835812,0.0094,3884.6,3884.5,0.463]
[1758882836013,0.0094,3884.6,3884.5,0.6316]
[1758882836715,0.48,3884.6,3884.4,0.27]
[1758882836915,0.6531,3884.5,3884.4,0.73301]
[1758882837115,0.4706,3884.5,3884.4,0.73301]
[1758882837414,0.38583795,3885.5,3884.4,0.73301]
[1758882837415,0.4706,3885.7,3884.9,0.1592]
[1758882837720,0.6531,3886.0,3885.8,0.46284]
[1758882837911,0.4706,3886.3,3885.9,40.434]
[1758882838117,0.4706,3886.3,3886.2,0.4628]
[1758882838414,0.6531,3886.5,3886.4,0.46277]
[1758882838716,0.6531,3886.5,3886.4,0.73377]
[1758882838917,0.6531,3887.0,3886.9,0.46271]
[1758882839221,1.32873003,3887.0,3886.9,0.73371]
[1758882839423,1.05301253,3887.0,3886.9,0.73371]
[1758882839721,0.4706,3887.4,3887.3,0.46267]
[1758882839922,1.14641082,3887.4,3887.3,0.73367]
[1758882840318,1.14641082,3887.4,3887.0,0.4627]
[1758882840521,0.4752,3887.2,3887.1,0.46269]
[1758882840721,0.1825,3887.5,3887.4,0.46265]
[1758882841017,1.23744416,3887.5,3887.4,0.46265]
[1758882841627,1.23744416,3887.5,3886.6,40.8]
[1758882841817,0.6577,3887.5,3887.4,40.153]
[1758882842013,1.23372322,3887.5,3887.3,0.46266]
[1758882842218,0.6577,3887.5,3887.4,40.422]
[1758882842418,1.23352461,3887.5,3887.4,40.422]
[1758882843014,0.6577,3887.5,3887.4,40.422]
[1758882844920,0.1825,3888.0,3887.4,40.422]
[1758882845120,0.4512,3887.8,3887.7,0.46261]
[1758882845327,1.02643806,3887.8,3887.7,0.27]
[1758882846333,0.4512,3887.7,3887.6,0.46263]
[1758882846629,0.4512,3887.7,3887.6,40.87363]
[1758882846630,1.02600203,3887.7,3887.6,40.87363]
[1758882847322,0.4512,3887.7,3887.6,40.87363]
[1758882847530,0.6337,3888.0,3887.9,0.4626]
[1758882847718,1.20829999,3888.0,3887.9,0.7326]
[1758882847924,0.6337,3888.0,3887.9,0.7326]
[1758882848119,0.6337,3888.5,3888.4,0.46254]
[1758882848321,1.20789774,3888.5,3888.4,0.73254]
[1758882849026,1.20789774,3888.5,3888.4,40.86654]
[1758882849532,0.57419774,3888.5,3888.4,40.86654]
[1758882849724,1.02539774,3888.5,3888.4,40.86654]
[1758882849928,0.1774,3889.0,3888.9,0.46248]
[1758882850130,10.06193434,3889.0,3888.9,0.27]
[1758882850428,6.29543875,3889.0,3888.9,0.27]
[1758882850623,0.4512,3888.4,3888.2,40.8]
[1758882850925,0.6315,3888.0,3887.4,0.1394]
[1758882851129,0.4512,3887.9,3887.7,0.46262]
[1758882851330,0.4512,3887.9,3887.8,81.66261]
[1758882851626,0.4512,3887.9,3887.8,41.26261]
[1758882851928,0.4512,3887.9,3887.8,0.46261]
[1758882852129,0.4512,3887.9,3887.8,40.398]
[1758882852325,0.4512,3887.9,3887.7,41.26262]
[1758882852525,0.4512,3887.9,3887.8,40.398]
[1758882852829,0.4512,3887.9,3887.7,0.46262]
[1758882853026,0.4626,3887.9,3886.8,1.29622]
[1758882853233,0.4512,3887.7,3887.6,0.46263]
[1758882853431,0.4512,3887.7,3887.6,0.73263]
[1758882853618,0.1803,3888.0,3887.9,0.602]
[1758882853619,0.4512,3888.0,3887.9,0.602]
[1758882853823,0.1803,3888.5,3887.9,0.27]
[1758882854031,0.1803,3888.5,3887.9,0.4094]
[1758882854032,0.4512,3888.3,3887.9,0.4094]
[1758882854329,0.4512,3887.9,3887.1,1.29614]
[1758882854627,0.4512,3887.9,3887.2,40.395]
[1758882854829,0.4512,3887.9,3887.7,0.46262]
[1758882855024,0.4512,3887.9,3887.8,0.27]
[1758882855229,1.02377519,3887.9,3887.4,0.46265]
[1758882855429,0.4512,3887.9,3887.6,0.46263]
[1758882855931,0.4512,3887.9,3887.5,40.394]
[1758882855932,0.1803,3888.0,3887.8,0.4626]
[1758882856129,1.0240622,3887.9,3887.8,0.4626]
[1758882856329,1.0240622,3887.9,3887.8,0.7326]
[1758882856633,0.4512,3887.9,3887.8,0.7326]
[1758882858232,0.1803,3888.0,3887.8,0.7326]
[1758882858233,0.1803,3888.0,3887.8,0.872]
[1758882858438,0.6315,3888.0,3887.8,0.872]
[1758882858634,0.4512,3888.4,3888.3,0.46254]
[1758882858830,0.4512,3888.4,3887.9,0.1394]
[1758882858831,1.11758047,3888.4,3887.2,0.1394]
[1758882859035,0.4512,3887.9,3887.5,0.46264]
[1758882859329,0.4512,3887.9,3887.6,0.27]
[1758882859534,0.1803,3888.0,3887.6,0.73263]
[1758882859728,0.1803,3888.0,3887.6,0.27]
[1758882859729,0.4512,3887.9,3887.6,0.27]
[1758882860036,0.4512,3887.9,3887.8,0.46261]
[1758882860230,0.4512,3887.9,3887.6,0.46262]
[1758882860436,0.1803,3888.0,3887.7,40.391]
[1758882860636,0.4512,3887.9,3887.4,0.46265]
[1758882860837,0.1803,3887.5,3887.4,0.46265]
[1758882861029,0.6315,3887.5,3887.4,40.85365]
[1758882861229,0.6315,3888.0,3887.4,40.5304]
[1758882861424,0.1803,3888.0,3887.5,40.39]
[1758882861632,0.6315,3888.0,3887.8,0.46261]
[1758882861829,0.6315,3888.0,3887.9,0.27]
[1758882862031,0.4512,3888.0,3887.9,0.27]
[1758882862435,0.1803,3888.0,3887.6,0.1394]
[1758882862635,0.4512,3887.9,3887.7,0.46262]
[1758882862838,0.4512,3887.9,3887.8,40.39]
[1758882863133,1.02648767,3887.9,3887.8,40.39]
[1758882863734,0.4512,3888.9,3888.0,1.15647]
[1758882863926,0.4512,3888.7,3888.6,0.4625]
[1758882864235,0.54478678,3888.7,3888.6,0.7325]
[1758882864639,0.6286,3889.0,3888.9,0.46248]
[1758882864935,0.4512,3889.3,3889.2,0.46244]
[1758882865235,0.54492574,3889.3,3889.2,40.85044]
[1758882865431,0.6315,3890.0,3889.9,0.46236]
[1758882865632,0.6315,3890.0,3889.9,0.73136]
[1758882865834,0.6315,3890.0,3889.9,0.269]
[1758882866032,5.6315,3890.0,3888.6,0.1394]
[1758882866332,0.91369,3888.9,3888.7,0.27]
[1758882866532,0.91369,3888.9,3887.7,40.117]
[1758882866533,0.1803,3888.5,3888.3,0.46255]
[1758882866732,0.1803,3888.5,3887.7,40.117]
[1758882866933,0.4512,3888.4,3888.2,0.46256]
[1758882867135,0.4512,3888.4,3888.3,0.27]
[1758882867433,0.4512,3888.4,3888.3,40.385]
[1758882869246,0.1803,3888.5,3888.4,0.46254]
[1758882869544,0.4512,3888.5,3888.4,0.46254]
[1758882869738,0.1803,3889.0,3888.9,0.46248]
[1758882869739,0.6315,3889.0,3888.9,0.46248]
[1758882869939,0.6315,3889.0,3888.9,0.73248]
[1758882870434,0.6315,3889.0,3888.9,0.27]
[1758882872242,0.0068,3889.2,3889.0,0.46247]
[1758882872443,0.0068,3889.2,3889.0,0.59767]
[1758882873045,0.0068,3889.2,3889.1,40.8]
[1758882873447,0.659,3889.5,3889.4,0.46242]
[1758882873747,0.659,3889.5,3889.4,0.73242]
[1758882874447,0.659,3889.5,3889.4,0.46242]
[1758882874644,0.659,3889.5,3889.1,40.8]
[1758882874844,0.4787,3889.4,3889.1,41.26245]
[1758882875141,0.4787,3889.4,3889.2,40.84344]
[1758882875335,0.4787,3889.4,3889.3,0.73243]
[1758882875740,1.04203703,3889.4,3889.3,0.73243]
[1758882875939,0.56333703,3889.4,3889.3,0.86763]
[1758882876349,0.4787,3889.8,3889.7,0.46238]
[1758882876548,0.4787,3889.8,3889.7,0.73238]
[1758882876740,1.04187803,3889.8,3889.7,0.73238]
[1758882877346,1.04187803,3889.8,3889.7,40.57138]
[1758882877643,1.13533882,3889.8,3889.7,40.84138]
[1758882878245,1.13533882,3889.8,3889.7,40.83938]
[1758882878850,0.65663882,3889.8,3889.7,40.83938]
[1758882879046,0.65663882,3889.8,3889.7,40.97458]
[1758882879253,0.4787,3890.2,3890.1,0.46234]
[1758882879642,0.1828,3890.0,3889.8,0.46236]
[1758882879953,0.4787,3889.9,3889.8,0.46236]
[1758882880143,0.57212508,3889.9,3889.8,40.56736]
[1758882880341,0.57212508,3889.9,3889.8,40.83736]
[1758882880542,0.4787,3889.9,3889.8,40.83736]
[1758882881347,0.6615,3890.0,3889.9,0.46236]
[1758882882847,0.6615,3890.0,3889.9,40.83536]
[1758882883854,0.1803,3890.5,3890.4,0.4623]
[1758882884157,0.1803,3890.5,3890.4,0.7313]
[1758882884348,1.21584726,3890.5,3890.4,0.7313]
[1758882884653,1.21584726,3890.5,3890.4,0.269]
[1758882884848,1.21584726,3890.5,3890.4,0.7313]
[1758882885539,1.30891732,3890.5,3890.4,0.7313]
[1758882886150,0.75207006,3890.5,3890.4,0.7313]
[1758882886753,0.659,3890.5,3890.4,0.7313]
[1758882887544,0.4787,3890.5,3890.4,0.8665]
[1758882887750,0.4787,3890.5,3889.9,0.46236]
[1758882887751,0.1828,3890.0,3889.9,0.46236]
[1758882887951,0.1828,3890.5,3890.4,0.4623]
[1758882888152,0.1828,3890.5,3890.4,0.7313]
[1758882888453,0.6615,3890.5,3890.4,0.7313]
[1758882888852,0.6615,3890.5,3890.4,40.8293]
[1758882889451,0.4787,3890.5,3890.4,40.9645]
[1758882889758,0.4787,3890.5,3890.4,40.8293]
[1758882890653,0.4787,3890.5,3890.4,40.9645]
[1758882891155,0.04490614,3891.4,3891.3,0.4622]
[1758882891156,0.36530614,3891.4,3891.3,0.4622]
[1758882891355,0.36530614,3891.4,3891.3,1.1953]
[1758882891356,5.38e-06,3891.4,3891.3,1.1953]
[1758882891656,0.1828,3892.5,3892.3,0.46207]
[1758882891856,0.1828,3892.5,3892.4,0.269]
[1758882892256,0.73988483,3892.5,3892.4,0.269]
[1758882892558,0.73988483,3892.5,3892.3,0.46207]
[1758882892762,0.1828,3892.5,3892.4,0.269]
[1758882892958,0.73958595,3892.5,3892.4,0.269]
[1758882893158,0.6615,3892.5,3892.4,0.269]
[1758882894363,0.022,3892.9,3892.5,0.4641]
[1758882894548,0.4787,3892.8,3892.5,0.4641]
[1758882894861,0.4787,3892.8,3892.4,1.42414]
[1758882895051,0.4787,3892.8,3892.7,0.46203]
[1758882895251,0.4787,3892.8,3892.7,0.73103]
[1758882895456,0.4787,3892.8,3892.0,1.15529]
[1758882895457,5.4787,3892.8,3892.0,1.15529]
[1758882895655,0.4787,3892.8,3892.6,0.46204]
[1758882895855,0.4787,3892.8,3892.7,0.269]
[1758882897267,0.4787,3892.8,3892.7,0.7331]
[1758882897466,0.4787,3892.8,3892.7,0.269]
[1758882898258,0.4787,3892.8,3892.7,0.73102]
[1758882899167,0.4787,3892.8,3892.7,0.269]
[1758882900861,0.7739,3892.8,3892.7,0.8663]
[1758882901561,0.7739,3892.8,3892.7,1.3221]
[1758882901864,0.7739,3892.8,3892.7,1.78413]
[1758882902372,0.7739,3892.8,3892.7,1.3221]
[1758882902667,0.7739,3892.8,3892.7,1.78413]
[1758882903069,0.7946,3892.8,3892.1,0.4558]
[1758882903262,0.6324,3892.7,3892.1,0.4621]
[1758882903464,0.6324,3892.7,3892.6,0.3033]
[1758882903658,1.0982,3892.7,3892.6,1.33564]
[1758882903960,1.0982,3892.7,3892.6,0.8736]
[1758882903961,1.56023,3892.7,3892.6,0.8736]
[1758882904162,1.56023,3892.7,3892.6,1.3294]
[1758882904163,1.24433,3892.7,3892.6,1.3294]
[1758882904667,1.24433,3892.7,3892.6,1.79144]
[1758882904867,1.24433,3892.7,3892.6,1.3294]
[1758882905070,0.46208,3892.3,3892.1,0.4335]
[1758882905258,1.51128,3892.3,3892.2,0.3094]
[1758882905460,1.51128,3892.3,3892.2,40.344]
[1758882906063,0.744,3892.3,3892.2,41.23959]
[1758882906270,0.744,3892.3,3892.2,1.49619]
[1758882906574,0.744,3892.3,3892.2,41.83919]
[1758882907165,1.20608,3892.3,3892.2,41.3771]
[1758882908271,0.744,3891.8,3891.7,40.8]
[1758882908468,0.4488,3891.8,3891.7,82.03765]
[1758882908766,0.744,3892.0,3891.9,1.49622]
[1758882908968,0.744,3892.0,3891.9,1.76422]
[1758882909368,1.06248,3892.4,3892.3,0.3094]
[1758882909569,1.20606,3892.4,3892.3,1.3021]
[1758882910569,1.20606,3892.4,3892.3,0.8686]
[1758882910766,1.60366552,3892.4,3892.3,0.268]
[1758882911266,1.60366552,3892.4,3891.7,81.3075]
[1758882911267,1.2253,3892.0,3891.9,1.06272]
[1758882911463,0.744,3892.0,3891.9,41.83722]
[1758882911660,1.0625,3892.1,3892.0,0.3094]
[1758882911861,0.1761,3892.5,3892.1,0.4335]
[1758882911862,0.63816,3892.5,3892.1,0.4335]
[1758882912062,0.022,3892.9,3892.6,0.6006]
[1758882912063,0.46203,3892.7,3892.6,0.6006]
[1758882912270,0.55446268,3892.7,3892.6,1.3021]
[1758882912456,0.022,3892.9,3892.8,1.49612]
[1758882912771,0.4488,3893.5,3893.4,1.49604]
[1758882912965,0.54126298,3893.5,3893.4,1.76404]
[1758882913166,1.00319298,3893.5,3893.4,1.0341]
[1758882913471,1.17929298,3893.5,3893.4,40.9406]
[1758882914260,1.81368141,3894.8,3893.4,0.6006]
[1758882914459,1.1761,3895.0,3894.6,0.7429]
[1758882914460,0.39360872,3894.7,3894.6,0.7429]
[1758882914770,0.39360872,3894.7,3894.6,0.7025]
[1758882915268,0.3012,3894.3,3894.1,39.8918]
[1758882915467,0.3012,3894.3,3894.0,0.1895]
[1758882915772,0.3012,3894.3,3893.9,0.4335]
[1758882916066,0.3012,3894.1,3894.0,0.7015]
[1758882916271,0.3012,3893.7,3893.6,40.5015]
[1758882916470,0.3012,3893.7,3893.6,40.7695]
[1758882916661,0.46186,3894.1,3893.6,40.7695]
[1758882916972,0.76306,3894.1,3894.0,0.623]
[1758882917178,0.3012,3894.1,3894.0,0.891]
[1758882917469,0.3012,3894.1,3894.0,1.2004]
[1758882917657,2.15441,3895.0,3894.3,0.46184]
[1758882917658,0.1506,3894.4,3894.3,0.46184]
[1758882917857,0.1506,3894.6,3894.5,1.68541]
[1758882918064,1.0,3895.0,3894.9,0.4335]
[1758882918257,1.0,3895.0,3894.9,0.7015]
[1758882919866,0.5559,3894.6,3894.5,40.064]
[1758882920065,0.5559,3894.6,3894.5,40.15365339]
[1758882920367,0.46186,3894.1,3894.0,0.623]
[1758882920568,0.1029,3894.7,3894.1,0.4335]
[1758882920764,0.46184,3894.3,3894.0,0.4585]
[1758882920971,0.46183,3894.5,3894.4,0.4335]
[1758882921172,0.46183,3894.5,3894.4,0.7025]
[1758882921477,0.0088,3894.7,3894.4,0.7025]
[1758882921478,0.47059,3894.7,3894.6,0.4335]
[1758882921773,0.47059,3894.7,3894.6,0.7025]
[1758882921971,0.0088,3894.7,3894.6,0.7025]
[1758882924067,0.0088,3894.7,3894.6,1.1643]
[1758882924668,0.0088,3894.7,3894.6,0.4335]
[1758882924870,0.0088,3894.7,3894.6,1.1643]
[1758882927670,28.12536,3896.9,3894.6,1.1643]
[1758882927671,0.01036315,3895.8,3895.6,0.4335]
[1758882927976,0.64386492,3895.7,3895.6,0.89518]
[1758882928276,0.64386492,3895.7,3895.6,1.16318]
[1758882928474,0.08975239,3895.7,3895.6,1.16318]
[1758882928973,0.01036315,3895.8,3895.6,0.4335]
[1758882929161,0.01036315,3895.8,3895.6,41.21618]
[1758882929162,0.46167,3895.7,3895.6,41.21618]
[1758882929563,0.01036315,3895.8,3895.7,0.89517]
[1758882930174,1.15387,3896.8,3895.7,0.4335]
[1758882930474,0.46159,3896.4,3896.3,0.4575]
[1758882930776,0.20366539,3897.1,3896.6,0.4575]
[1758882930978,0.46163,3896.1,3896.0,0.193]
[1758882931173,0.46163,3896.1,3896.0,0.461]
[1758882931568,0.46163,3896.1,3896.0,0.9185]
[1758882931771,0.46163,3896.1,3896.0,0.6505]
[1758882931975,0.46163,3896.1,3896.0,40.9665]
[1758882932666,0.46163,3896.1,3896.0,0.9185]
[1758882933575,0.46155,3896.7,3896.6,0.4575]
[1758882933762,1.10271648,3896.7,3896.6,0.7255]
[1758882934376,0.55095715,3896.7,3896.6,0.7255]
[1758882934574,5.55095715,3896.7,3896.6,0.268]
[1758882934771,0.55095715,3896.7,3896.6,0.268]
[1758882935478,0.46155,3896.7,3896.6,0.268]
[1758882936471,0.46155,3896.7,3896.6,0.7255]
[1758882937371,0.46149,3897.2,3897.1,0.4575]
[1758882937577,0.55090497,3897.2,3897.1,0.7255]
[1758882938175,1.34649,3897.1,3896.5,40.234]
[1758882938368,0.46157,3896.6,3896.5,0.6505]
[1758882938573,1.06907,3896.6,3896.5,0.6505]
[1758882938775,1.06907,3896.6,3896.0,0.193]
[1758882938776,0.46162,3896.1,3896.0,1.2366]
[1758882939274,0.46162,3896.1,3896.0,1.5046]
[1758882940173,0.77002,3896.1,3896.0,1.5046]
[1758882940576,0.46162,3896.1,3896.0,1.5046]
[1758882941775,1.15386,3896.8,3896.6,0.292]
[1758882942083,0.76994,3896.8,3896.7,0.7495]
[1758882942372,1.4116342,3896.8,3896.7,1.0175]
[1758882942576,1.4116342,3896.8,3896.7,1.3116]
[1758882942768,1.1032342,3896.8,3896.7,1.3116]
[1758882943168,0.46154,3896.8,3896.7,1.3116]
[1758882943577,0.55114559,3896.8,3896.7,1.3116]
[1758882945784,0.46152,3897.0,3896.9,1.50513]
[1758882945980,0.55149203,3897.0,3896.9,1.0436]
[1758882946482,0.85989203,3897.0,3896.9,1.0436]
[1758882946683,1.71189783,3897.0,3896.9,1.3116]
[1758882948481,1.41279783,3897.0,3896.9,1.3116]
[1758882949489,1.10439783,3897.0,3896.9,1.3116]
[1758882950681,1.41279783,3897.0,3896.9,1.3116]
[1758882951083,1.06907,3896.6,3896.5,0.6505]
[1758882951283,1.71194783,3896.6,3896.5,0.9185]
[1758882951678,1.90464783,3896.6,3896.5,0.7255]
[1758882952076,0.46162,3896.1,3896.0,0.485]
[1758882952282,2.17379157,3896.1,3896.0,0.56]
[1758882952483,1.72289157,3896.1,3896.0,0.56]
[1758882952682,2.17379157,3896.1,3896.0,0.56]
[1758882952891,2.17379157,3896.1,3896.0,0.268]
[1758882953985,2.17379157,3896.1,3895.5,0.1895]
[1758882953986,0.46174,3895.1,3895.0,0.485]
[1758882954190,1.87544823,3895.1,3895.0,1.0425]
[1758882954388,2.17454823,3895.1,3895.0,1.0425]
[1758882954579,2.17454823,3895.1,3895.0,1.0175]
[1758882954784,1.71280823,3895.1,3895.0,1.0175]
[1758882954982,1.26190823,3895.1,3895.0,1.3116]
[1758882955884,1.71280823,3895.1,3895.0,0.268]
[1758882956178,1.71280823,3895.1,3894.2,1.0436]
[1758882956179,1.07925,3894.3,3894.2,1.0436]
[1758882956384,1.07925,3894.3,3893.6,40.033]
[1758882956385,0.70759291,3894.3,3893.8,0.4575]
[1758882956586,0.4619,3893.8,3893.7,0.4575]
[1758882956798,0.55209291,3893.8,3893.7,0.7255]
[1758882956983,1.00299291,3893.8,3893.7,0.7255]
[1758882957183,0.46193,3893.6,3893.2,0.46197]
[1758882957391,0.55202083,3893.5,3893.3,0.268]
[1758882957593,0.09008083,3893.4,3893.3,0.268]
[1758882957986,0.09008083,3893.4,3893.3,0.7255]
[1758882958291,0.46194,3893.5,3893.4,0.4575]
[1758882958480,0.55191474,3893.5,3893.4,0.4575]
[1758882958680,1.00281474,3893.5,3893.3,0.268]
[1758882958887,1.00281474,3893.5,3892.9,0.4575]
[1758882958888,0.91289,3893.0,3892.9,0.4575]
[1758882959087,1.00286474,3893.0,3892.9,0.268]
[1758882959283,1.00286474,3893.0,3892.5,0.65504]
[1758882959284,0.1946,3893.5,3892.5,0.193]
[1758882959489,0.1946,3893.5,3892.6,0.268]
[1758882959490,0.91293,3892.7,3892.6,0.268]
[1758882959683,0.91293,3892.7,3892.6,0.7255]
[1758882959884,0.46203,3892.7,3892.6,0.7255]
[1758882960196,0.4509,3893.4,3892.7,0.4575]
[1758882960392,7.75816153,3894.0,3892.7,0.4575]
[1758882960393,0.46198,3893.2,3893.0,0.182]
[1758882960591,0.46198,3893.2,3893.1,0.7509]
[1758882960893,0.55179885,3893.2,3893.1,0.7509]
[1758882961195,0.46198,3893.2,3893.1,0.7509]
[1758882961393,0.93668,3893.2,3893.1,0.7509]
[1758882962494,0.46204,3892.7,3892.6,0.4829]
[1758882962689,0.46195,3893.4,3893.0,0.64399]
[1758882962994,0.46196,3893.3,3893.2,0.4829]
[1758882963495,0.93666,3893.3,3893.2,0.4829]
[1758882963793,1.3493,3894.0,3893.2,0.268]
[1758882963794,0.46195,3893.4,3893.2,0.268]
[1758882963992,0.4747,3893.3,3893.2,0.268]
[1758882965490,0.4747,3893.3,3893.2,0.7166]
[1758882965695,0.46195,3893.4,3893.2,0.268]
[1758882965897,0.46195,3893.4,3893.3,0.4486]
[1758882966286,0.4399,3893.7,3893.4,0.4486]
[1758882966491,0.46191,3893.7,3893.5,0.1754]
[1758882966687,0.46191,3893.7,3893.6,0.4486]
[1758882967191,0.46189,3893.9,3893.7,0.46191]
[1758882967398,0.46186,3894.2,3893.8,1.17849]
[1758882967701,0.46185,3894.2,3894.1,0.4486]
[1758882967896,0.46188,3893.9,3893.8,0.268]